Cogmind - Beta 10.2 *** ADVENTURER MODE // 2021.05.01 @ 22:15:26 Player: Em Result: Self-destructed Performance ------------- Evolutions (1) 500 Regions Visited (2) 400 Robots Destroyed (11) 55 Value Destroyed (145) 145 Prototype IDs (0) 0 Alien Tech Used (0) 0 Bonus (0) 0 TOTAL SCORE: 1100 Bonus ------- None Cogmind --------- Core Integrity 389/400 Matter 300/300 Energy 5/125 System Corruption 1% Temperature Cool (0) Movement Walking (120) Location -9/Materials Parts ------- > --- POWER (1) -------- Light Ion Engine > --- PROPULSION (2) --- Aluminum Leg Aluminum Leg > --- UTILITY (4) ------ Small Storage Unit Improved Terrain Scanner ECM Suite Tractor Beam > --- WEAPON (2) ------- EM Pulse Gun > --- INVENTORY (6) ---- Light Ion Engine Light Ion Engine Aluminum Leg Light Assault Rifle Mining Laser Welding Torch Peak State ------------ > --- POWER ------------ Light Ion Engine > --- PROPULSION ------- Aluminum Leg Aluminum Leg > --- UTILITY ---------- Small Storage Unit Improved Terrain Scanner ECM Suite Tractor Beam > --- WEAPON ----------- EM Pulse Gun Medium Laser > --- INVENTORY -------- Light Ion Engine Light Ion Engine Aluminum Leg Light Assault Rifle [Rating: 10] Favorites ----------- Power Light Ion Engine Engine Light Ion Engine Propulsion Aluminum Leg Leg Aluminum Leg Utility Small Storage Unit Device Tractor Beam Storage Small Storage Unit Weapon EM Pulse Gun Energy Gun EM Pulse Gun Build | -11 -10 -9 ------- Run | Scr Mat Mat Slots Evolved 2 | . . 2 Power . | . . . Propulsion . | . . . Utility 2 | . . 2 Weapon . | . . . Parts Attached 9 | 7 . 2 Power 1 | 1 . . Engine 1 | 1 . . Core . | . . . Reactor . | . . . Propulsion 2 | 2 . . Treads . | . . . Leg 2 | 2 . . Wheel . | . . . Hover . | . . . Flight . | . . . Utility 4 | 2 . 2 Device 3 | 1 . 2 Storage 1 | 1 . . Processor . | . . . Hackware . | . . . Protection . | . . . Artifact . | . . . Weapon 2 | 2 . . Energy Gun 2 | 2 . . Energy Cannon . | . . . Ballistic Gun . | . . . Ballistic Cannon . | . . . Launcher . | . . . Special Weapon . | . . . Impact Weapon . | . . . Slashing Weapon . | . . . Piercing Weapon . | . . . Special Melee Weapon . | . . . Unidentified Prototypes . | . . . Parts Lost . | . . . Power . | . . . Propulsion . | . . . Utility . | . . . Weapon . | . . . Highest Loss Streak . | . . . Average Slot Usage (%) 99 | . 100 99 Engine 12 | . 14 11 Leg 24 | . 28 22 Device 23 | . 14 33 Storage 12 | . 14 11 Energy Gun 24 | . 28 21 Naked Turns . | . . . Heaviest Build 14 | 12 12 14 Greatest Support 20 | 20 20 20 Greatest Overweight (x) . | . . . Average Overweight (x) . | . . . Largest Inventory Capacity 6 | 6 6 6 Average Capacity 5 | 5 6 6 Most Carried 6 | 5 6 6 Average Carried 4 | 2 5 5 Final Capacity 6 | 6 6 6 Final Carried 6 | 5 6 6 Class Distribution -------------------- 100% | Mutant Dominant Class ---------------- Mutant | -10/Materials Mutant | -9/Materials Resources | -11 -10 -9 ----------- Run | Scr Mat Mat Matter Collected 290 | 270 . 20 Remotely 142 | 122 . 20 Salvage Created 343 | 238 105 . Parts 18 | 13 5 . Haulers Intercepted . | . . . Recyclers Shooed . | . . . Parts Field Recycled . | . . . Retrieved Matter . | . . . Parts Self-Destructed . | . . . Prevented . | . . . Kills | -11 -10 -9 ------- Run | Scr Mat Mat Combat Hostiles Destroyed 3 | . 3 . Guns 1 | . 1 . AOE 2 | . 2 . Classes Destroyed 4 | 3 1 . Worker 2 | 2 . . Tunneler 5 | 5 . . Recycler 1 | 1 . . Grunt 3 | . 3 . Best Kill Streak 7 | 7 2 . Combat Bots Only 2 | . 2 . Max Kills in Single Turn 2 | 1 2 . Gunslinging . | . . . Exploded 2 | . 2 . Melee . | . . . Uniques/NPCs Destroyed . | . . . Combat | -11 -10 -9 -------- Run | Scr Mat Mat Damage Taken 127 | . 21 106 Core 24 | . 13 11 Absorbed by Shields . | . . . Core Remaining (%) 97 | 100 94 . Volleys Fired 17 | 11 3 3 Largest 2 | 2 2 2 Hottest 90 | 90 90 90 Shots Fired 32 | 21 5 6 Gun 32 | 21 5 6 Cannon . | . . . Launcher . | . . . Special . | . . . Kinetic . | . . . Thermal 15 | 10 2 3 Explosive . | . . . Electromagnetic 17 | 11 3 3 Robot Hit Streak 10 | 10 7 8 Robot Miss Streak 2 | 2 . 1 Penetration Max . | . . . Secondary Targets . | . . . Shots Hit Robots 22 | 12 5 5 Core Hits 14 | 8 5 1 Critical Hits . | . . . Critical Kills . | . . . Critical Parts Destroyed . | . . . Melee Attacks . | . . . Impact . | . . . Slashing . | . . . Piercing . | . . . Sneak Attacks . | . . . Combat Hostiles . | . . . Follow-up Attacks . | . . . Damage Inflicted 396 | 215 134 47 Guns 271 | 170 54 47 Cannons . | . . . Explosions 125 | 45 80 . Melee . | . . . Ramming . | . . . Kinetic . | . . . Thermal 199 | 81 93 25 Explosive . | . . . Electromagnetic 197 | 134 41 22 Impact . | . . . Slashing . | . . . Piercing . | . . . Highest Corruption 1 | . . 1 Average Corruption 1 | . . 1 Corruption Purged . | . . . Effects 1 | . . 1 Message Errors 1 | . . 1 Overload Shots . | . . . Overflow Damage 17 | 17 . . Projectiles . | . . . Explosions 17 | 17 . . Melee . | . . . Knockbacks . | . . . Impact . | . . . Kinetic . | . . . Secondary . | . . . Self-Inflicted Damage . | . . . Shots . | . . . Rammed . | . . . Targets Rammed . | . . . Kicked . | . . . Crushed . | . . . Highest Temperature 180 | 180 48 51 Average Temperature 52 | 64 27 27 Received Heat Transfer 42 | . 6 36 Siege Activations . | . . . Robots Corrupted . | . . . Combat Hostiles . | . . . Parts Fried . | . . . Impact Corruptions . | . . . Robots Melted . | . . . Combat Hostiles . | . . . Parts Melted . | . . . Heat Transferred 422 | 161 187 74 Parts Sabotaged . | . . . Parts Stolen . | . . . Parts Stripped . | . . . Power Chain Reactions 2 | 1 1 . Missiles Intercepted . | . . . Alert | -11 -10 -9 ------- Run | Scr Mat Mat Peak Influence 92 | 40 92 48 Initial 33 | . 22 33 Average 32 | 20 46 35 Maximum Alert Level . | . . . Low Security (%) 100 | 100 100 100 Level 1 . | . . . Level 2 . | . . . Level 3 . | . . . Level 4 . | . . . Level 5 . | . . . High Security . | . . . Max Security . | . . . Squads Dispatched 2 | . 2 . Investigation 2 | . 2 . Extermination . | . . . Reinforcement . | . . . Assault . | . . . Garrison . | . . . Intercept . | . . . Construction Impeded . | . . . Haulers Reinforced . | . . . Stealth | -11 -10 -9 --------- Run | Scr Mat Mat Distress Signals . | . . . Communications Jammed . | . . . Distress Signals . | . . . Times Spotted 4 | . 2 2 Peak Tracking Total 2 | . 2 2 Tactical Retreats . | . . . Traps | -11 -10 -9 ------- Run | Scr Mat Mat Traps Triggered 4 | . 2 2 Indirectly . | . . . Trap Hack Attempts . | . . . Triggered . | . . . Disarmed . | . . . Reprogrammed . | . . . Reused . | . . . Traps Extracted . | . . . Installed . | . . . Triggered . | . . . Machines | -11 -10 -9 ---------- Run | Scr Mat Mat Machines Disabled . | . . . Max in Single Turn . | . . . Machines Sabotaged . | . . . Garrisons Compromised . | . . . Overloaded Fab Kills . | . . . Fab Network Shutdowns . | . . . Hacking | -11 -10 -9 --------- Run | Scr Mat Mat Machines Accessed 1 | . 1 . Terminals 1 | . 1 . Fabricators . | . . . Repair Stations . | . . . Recycling Units . | . . . Scanalyzers . | . . . Garrison Access . | . . . Total Hacks 3 | . 3 . Successful 3 | . 3 . Failed . | . . . Catastrophic . | . . . Database Lockouts . | . . . Manual . | . . . Terminals 3 | . 3 . Fabricators . | . . . Repair Stations . | . . . Recycling Units . | . . . Scanalyzers . | . . . Garrison Access . | . . . Terminal Hacks 3 | . 3 . Record 3 | . 3 . Fabricator Hacks . | . . . Repair Station Hacks . | . . . Recycling Unit Hacks . | . . . Scanalyzer . | . . . Garrison Access Hacks . | . . . Unauthorized Hacks . | . . . Terminals . | . . . Fabricators . | . . . Repair Stations . | . . . Recycling Units . | . . . Scanalyzers . | . . . Garrison Access . | . . . Data Cores Recovered . | . . . Used . | . . . Hacking Detections 1 | . 1 . Full Trace Events 1 | . 1 . Feedback Events . | . . . Feedback Blocked . | . . . Robot Schematics Acquired . | . . . Robots Built . | . . . Matter . | . . . Time . | . . . Total Robot Build Rating . | . . . Part Schematics Acquired . | . . . Parts Built . | . . . Matter . | . . . Time . | . . . Total Part Build Rating . | . . . Parts Repaired . | . . . Time . | . . . Parts Recycled . | . . . Recycled Matter . | . . . Retrieved Matter . | . . . Retrieved Components . | . . . Parts Scanalyzed . | . . . Part Schematics Acquired . | . . . Parts Damaged . | . . . Bothacking | -11 -10 -9 ------------ Run | Scr Mat Mat Used RIF Installer . | . . . Robots Hacked . | . . . Non-combat . | . . . Combat . | . . . Robot Hacks Applied . | . . . Relay Couplers Released . | . . . Robots Rewired . | . . . Allies Hacked . | . . . Hacks Repelled . | . . . Allies | -11 -10 -9 -------- Run | Scr Mat Mat Total Allies . | . . . Largest Group . | . . . Highest-Rated Group . | . . . Highest-Rated Ally . | . . . Total Orders . | . . . Ally Attacks . | . . . Total Damage . | . . . Kills . | . . . Allies Corrupted . | . . . Allies Melted . | . . . Intel | -11 -10 -9 ------- Run | Scr Mat Mat Robot Analysis Total . | . . . Derelict Logs Recovered . | . . . Drone Launches . | . . . Drone Recoveries . | . . . Exploration | -11 -10 -9 ------------- Run | Scr Mat Mat Turns Passed 398 | 164 112 122 Spaces Moved 273 | 98 85 90 Core 6 | 6 . . Treads . | . . . Legs 267 | 92 85 90 Wheels . | . . . Hover . | . . . Flight . | . . . Fastest Speed 50 | 50 120 120 Average Speed 118 | 115 120 120 Slowest Speed 120 | 120 120 120 Overloaded Moves . | . . . Propulsion Burnouts . | . . . Robots Hopped . | . . . Cave-ins Triggered . | . . . Exploration Rate (%) 14 | 4 22 17 Regions Visited 2 Branch Regions . Pre-discovered Areas . | . . . Known Exits Taken . | . . . Unknown Exits Taken 2 | 1 1 . Scrap Searched . | . . . Spaces Dug . | . . . Terrain Destroyed 9 | 6 3 . Melee . | . . . Projectile . | . . . AOE 9 | 6 3 . Terrain Rammed . | . . . Walls Destroyed . | . . . Machines Disabled . | . . . Actions | -11 -10 -9 --------- Run | Scr Mat Mat Total 315 | 127 90 98 Wait . | . . . Move 271 | 97 84 90 Hop . | . . . Pick Up 16 | 12 2 2 Fast Attach . | . . . Attach 9 | 7 . 2 Detach . | . . . Swap . | . . . Drop 2 | . 1 1 Fire 17 | 11 3 3 Melee . | . . . Ram . | . . . Kick . | . . . Crush . | . . . Escape Stasis . | . . . Rewire . | . . . Trap . | . . . Miscellaneous . | . . . Route ------- -11/Scrapyard -10/Materials -9/Materials History --------- Turn | Location | Event 2 | -11/Scrapyard | Discovered new exit (range 16) 165 | -11/Scrapyard | Entered Materials 250 | -10/Materials | Discovered new exit (range 11) 277 | -10/Materials | Entered another Materials area 277 | -9/Materials | Evolved 2 slots: Utility x2 318 | -9/Materials | Build established: Mutant 399 | -9/Materials | Self-destructed Last Messages --------------- 00260_ G-34 Mercenary destroyed. 00272_ Dropped Wheel. 00273_ Acquired Aluminum Leg. PARAMETERS=UTILITY_2 LOCATION=UNKNOWN GOAL=ESCAPE 00300_ Acquired Welding Torch. 00340_ Acquired 20 matter. 00360_ K-01 Serf collects debris. 00362_ Triggered Shock Trap. 00362_ The floor emits a surge of raw power. 00362_ System corrupted (+1). 00368_ K-01 Serf collects debris. 00370_ Acquired Mining Laser. 00371_ R,X1QOKE9GDK38S57K0 00388_ Dropped Med. Laser. 00393_ K-01 Serf collects debris. 00398_ Triggered Shock Trap. 00398_ The floor emits a surge of raw power. Map ----- +----------------------------------------------------+ | ?????????????????????????????????????????????????? | | ?????????????????????????????????????????????????? | | ?????????????????????????????????????????????????? | | ?????????????????????????????????????????????????? | | ?????????????????????????????????????????????????? | | ?????????????????????????????????????????????????? | | ?????????????????????????????????????????????????? | | ?????????????????????????????????????????????????? | | ?????????????????????????????????????????????????? | | ?????????????????????????????????????????????????? | | ?????????????????????????????????????????????????? | | ?????????????????????????????????????????????????? | | ?????????????????????????????????????????????????? | | ????????????????????#?????????? ?????????????????? | | ????????????????#????????????????????????????????? | | ?????????????????????????????????????????????????? | | ????????????? ?????????????? ????????????????????? | | ?????????????? ??????????????????????????????????? | | ??????????????? ########?????????????????????????? | | ???????????????? ##????? #????????????????? | | ????????????????? #??? ? #????????????????? | | ?????????????????? #???? #????????????????? | | ??????????####+##### #???? ^ #????????????????? | | ??????????# # #??? # ???????????????? | | ??????????# # #### #????????????????? | | ??????????# # @ #????????????????? | | ??????????# /// # #????????????????? | | ??? ??????# ///[Y " +????????????????? | | ????????? # /// # """ #????????????????? | | ??????????# # """ #????????????????? | | ??????????# # """ ##????????????????? | | ??????????#= # "" #?????????????????? | | ????????? ##### #### """ #?????????????????? | | ????????? ????##???# "" +?????????????????? | | ???????????????????# """ #?????????????????? | | ????????#??????????# " #?????????????????? | | ???????????????????# #?????????????????? | | ???????????????????# ##????????????? ???? | | ???????????????????# #????#?????????????? | | ???????????????????# #????????#?????????? | | ???????????????????# #??????????????????? | | ???????????????????# #?#??#########?????? | | ??????????????????## ^ #????#% #?????? | | ??????????????????# ##???# " #?????? | | ??????????????????# ###### """#?????? | | ??????????????????/ # """#???#?? | | ??????????????????# ]] # """#?????? | | ??????????????????# ] + "" #?????? | | ??????????????????# # """#?????? | | ??????????????????# # ""#?????? | +----------------------------------------------------+ Best States ------------- Heat Dissipation 28 Energy Generation 10 Energy Capacity 125 Matter Stores 300 Matter Capacity 300 Sight Range 16 Terrain Scan Range 16 Terrain Scan Density 10 ECM Strength 1 Resistance: KI 20 Resistance: TH 20 Resistance: EX 20 Resistance: EM 20 Resistance: I 20 Resistance: S 20 Resistance: P 20 Evasion (%) 40 Offensive Hacking 10 Item Schematics ----------------- None Robot Schematics ------------------ None Fabricated ------------ Nothing Alien Tech Used ----------------- None Achievements -------------- Use The Force Challenges ------------ None Game ------ Seed BackupProtonMace Manual? 0 Play Time 00:09:46 Cumulative 2.1 hours Start 2021.05.01 @ 22:07:21 End 2021.05.01 @ 22:15:26 Sessions 1 Manual Loads 0 Difficulty Adventurer Special Mode None Game No. 3 Rogue 0 Adventurer 3 Explorer 0 Win Type - Total 0 Types 0/0/0/0/0/0/0/0/0 Lore% 3 Gallery% 9 Achievement% 8 Wizard Run 0 Options --------- ASCII 0 Keyboard 0 Movement Numpad Keybinds 0 Fullscreen 2 Font 18/X11Bold Map View 76x50 Tactical HUD 1 Map Filters NONE Filters NONE Steam 0 RUN: 7d1df8e3-3577-4b50-a502-720f5c32178a